[Event "Gibraltar Challengers A 2020"]
[Site "Caleta"]
[Date "2020.01.24"]
[Round "5.18"]
[White "Vila Dupla, Aurelio"]
[Black "Herzwurm, Robert"]
[Result "1-0"]
[ECO "E65"]
[WhiteElo "2092"]
[BlackElo "1979"]
[Annotator "NA RC"]
[PlyCount "139"]
[EventDate "2020.01.20"]
[EventType "swiss"]
[EventCountry "GGB"]
[SourceTitle "playchess.com"]
[Source "ChessBase"]
[SourceQuality "1"]
[TimeControl "6600+10"]

1. Nf3 {[%emt 0:07:06]} Nf6 {[%emt 0:00:00]} 2. c4 {[%emt 0:00:23]} g6 {[%emt 0:00:15]} 3. g3 {[%emt 0:00:08]} Bg7 {[%emt 0:00:11]} 4. Bg2 {[%emt 0:00:07]} O-O {[%emt 0:00:08]} 5. O-O {[%emt 0:00:04]} d6 {[%emt 0:01:36]} 6. d4 {[%emt 0:00:25]} c5 {[%emt 0:00:41]} 7. Nc3 {[%emt 0:00:09]} Nc6 {[%emt 0:00:12]} 8. e3 {[%emt 0:05:54]} Bd7 {[%emt 0:03:34]} 9. Re1 {[%emt 0:06:41] E65: King's Indian: Fianchetto: 6...c5 7 0-0 without d5 by White} (9. b3 cxd4 10. exd4 a6 11. a4 Rc8 12. Re1 d5 13. c5 Bg4 14. h3 Bxf3 15. Bxf3 e6 16. Rb1 Nxd4 17. Qxd4 {1-0 (48) Nepomniachtchi,I (2721)-Wang,H (2735) Beijing 2013}) 9... Rb8 {[%emt 0:02:44]} 10. h3 $146 {[%emt 0:16:32]} ({Predecessor:} 10. b3 Qc8 11. Bb2 Bh3 12. Bh1 a6 13. a4 b6 14. Ne2 Nb4 15. Bc3 Ne4 16. Bxb4 cxb4 {0-1 (74) Sultana,Z (1964)-Comas Colon,R (1762) Tromsoe 2014}) 10... a6 {[%emt 0:05:38]} 11. Qe2 {[%emt 0:18:26]} Re8 {[%emt 0:18:37]} 12. Rd1 {[%emt 0:07:55]} Qc8 {[%emt 0:04:33]} 13. Kh2 {[%emt 0:00:26]} Na5 {[%emt 0:05:21]} 14. Bf1 {[%emt 0:11:06]} b5 {[%emt 0:03:18]} 15. cxb5 {[%emt 0:00:58]} axb5 {[%emt 0:00:22]} 16. dxc5 {[%emt 0:00:56]} Qxc5 {[%emt 0:02:23]} 17. e4 {[%emt 0:00:31]} b4 {[%emt 0:15:26]} 18. Nd5 {[%emt 0:00:48]} Bb5 {[%emt 0:01:45]} 19. Qe1 {[%emt 0:02:34]} Bxf1 {[%emt 0:04:11]} 20. Nxf6+ {[%emt 0:00:08]} Bxf6 {[%emt 0:00:24]} 21. Qxf1 {[%emt 0:00:03]} Qc2 {[%emt 0:04:21]} 22. Re1 {[%emt 0:00:28]} Rec8 {[%emt 0:04:36]} 23. e5 {[%emt 0:00:43]} dxe5 {[%emt 0:01:06]} 24. Nxe5 {[%emt 0:00:10]} Qf5 {[%emt 0:04:48]} ({Better is} 24... Ra8 $15 25. Re2 Qa4) 25. Ng4 {[%emt 0:03:45]} Bg7 {[%emt 0:01:10]} (25... Qd5 $11 {remains equal.}) 26. Bf4 {[%emt 0:01:36]} Rb6 $2 {[%emt 0:05:34] [#]} (26... Ra8 $1 $11) 27. Rxe7 $2 {[%emt 0:01:07]} ({White must play} 27. Re5 $1 $18 {[%cal Re5f5][%mdl 512]} Bxe5 28. Nh6+ {[%mdl 64] Double Attack} Kf8 29. Nxf5 Bxf4 30. gxf4) 27... Nc6 {[%emt 0:01:18]} 28. Re2 {[%emt 0:00:19]} ({White should play} 28. Rc7 $14 Rxc7 29. Bxc7) 28... Nd4 {[%emt 0:00:29]} 29. Be3 $1 {[%emt 0:01:37]} Nf3+ {[%emt 0:02:30]} 30. Kh1 {[%emt 0:00:05]} Re6 {[%emt 0:01:15]} 31. Rd1 {[%emt 0:02:20]} Qe4 {[%emt 0:00:49]} 32. Qg2 {[%emt 0:00:10]} h5 {[%emt 0:00:11]} 33. Nh2 {[%emt 0:00:07]} Nxh2 {[%emt 0:01:49]} 34. Qxe4 {[%emt 0:00:11]} Rxe4 {[%emt 0:00:03]} 35. Kxh2 {[%emt 0:00:14]} Bh6 {[%emt 0:07:01]} 36. Rd4 {[%emt 0:03:01]} Rce8 {[%emt 0:00:07]} 37. Rxe4 {[%emt 0:00:06]} Rxe4 {[%emt 0:00:07]} 38. Kg2 {[%emt 0:00:09]} b3 {[%emt 0:01:35]} 39. a4 {[%emt 0:07:25]} ({Better is} 39. axb3 $16 Bg7 40. Rd2) 39... Bg7 $1 {[%emt 0:00:17]} 40. a5 {[%emt 0:00:08]} Ra4 $1 {[%emt 0:00:21]} 41. Bb6 {[%emt 0:00:06]} Ra2 $1 {[%emt 0:00:38]} 42. Re3 {[%emt 0:06:11]} Rxb2 {[%emt 0:00:48]} 43. a6 {[%emt 0:00:15]} Ra2 {[%emt 0:00:10]} 44. a7 {[%emt 0:00:09]} b2 {[%emt 0:00:09]} 45. Rb3 {[%emt 0:00:02]} g5 {[%emt 0:01:55]} 46. Bc5 {[%emt 0:00:52]} Ra4 {[%emt 0:01:24]} 47. Kf3 {[%emt 0:02:45]} Kh7 {[%emt 0:00:42]} 48. g4 {[%emt 0:00:24]} hxg4+ {[%emt 0:00:36]} 49. hxg4 {[%emt 0:00:01]} Kg6 {[%emt 0:00:08]} 50. Ke2 {[%emt 0:00:07]} Ra2 {[%emt 0:00:42]} 51. Kd3 {[%emt 0:00:09]} Ra1 {[%emt 0:00:13]} 52. Rb6+ {[%emt 0:01:15]} Kh7 {[%emt 0:00:01]} 53. Rb4 {[%emt 0:00:34]} Kg6 {[%emt 0:00:01]} 54. Be3 {[%emt 0:00:11]} Ra3+ {[%emt 0:00:07]} 55. Kc2 {[%emt 0:00:05]} Rc3+ {[%emt 0:00:02]} 56. Kd2 {[%emt 0:00:13]} Ra3 {[%emt 0:00:02]} 57. Rb6+ {[%emt 0:00:15]} Kh7 {[%emt 0:00:03]} 58. Rb7 {[%emt 0:00:01]} Kg6 {[%emt 0:00:04]} 59. Rb6+ $2 {[%emt 0:00:25]} (59. Kc2 $18) 59... Kh7 {[%emt 0:00:01]} 60. Rb5 {[%emt 0:00:03]} Kg6 {[%emt 0:00:04]} 61. Rxg5+ {[%emt 0:00:05]} Kh7 {[%emt 0:00:03]} 62. Rb5 {[%emt 0:00:02]} Bc3+ {[%emt 0:01:08]} 63. Kc2 {[%emt 0:00:22]} Bg7 {[%emt 0:00:03]} 64. Rb7 $18 {[%emt 0:00:08]} Ra1 {[%emt 0:00:13]} 65. f4 {[%emt 0:00:12]} Ra3 {[%emt 0:00:28]} 66. Bd2 {[%emt 0:00:26]} Bd4 {[%emt 0:00:16]} 67. Rxf7+ {[%emt 0:00:09]} Kg8 {[%emt 0:00:01]} 68. Rb7 {[%emt 0:00:13]} Bxa7 {[%emt 0:00:17]} 69. Kxb2 {[%emt 0:00:13]} Rg3 {[%emt 0:00:07]} 70. Rxa7 {[%emt 0:00:07]} 1-0

[Event "Gibraltar Challengers A 2020"]
[Site "Caleta"]
[Date "2020.01.24"]
[Round "5.19"]
[White "Stolniceanu, Victor-Dumitru"]
[Black "Gostelow, David W"]
[Result "0-1"]
[ECO "B31"]
[WhiteElo "2074"]
[BlackElo "1901"]
[Annotator "NA RC"]
[PlyCount "96"]
[EventDate "2020.01.20"]
[EventType "swiss"]
[EventCountry "GGB"]
[SourceTitle "playchess.com"]
[Source "ChessBase"]
[SourceQuality "1"]
[TimeControl "6600+10"]

1. e4 {[%emt 0:00:56]} c5 {[%emt 0:00:00]} 2. Nf3 {[%emt 0:00:13]} Nc6 {[%emt 0:00:00]} 3. Bb5 {[%emt 0:00:13]} g6 {[%emt 0:00:00]} 4. O-O {[%emt 0:00:10]} Bg7 {[%emt 0:00:18]} 5. Bxc6 {[%emt 0:00:10]} dxc6 {[%emt 0:00:24]} 6. d3 {[%emt 0:00:09]} Bg4 {[%emt 0:00:42]} 7. Nbd2 {[%emt 0:00:13]} Qc7 {[%emt 0:03:14]} 8. h3 {[%emt 0:00:08]} h5 {[%emt 0:02:49]} 9. Re1 {[%emt 0:01:27]} Bd7 {[%emt 0:21:55]} 10. Rb1 {[%emt 0:01:46]} (10. e5 $16) 10... Nh6 {[%emt 0:02:36]} (10... e5 $14) 11. b3 {[%emt 0:00:08]} O-O-O {[%emt 0:06:57]} 12. Bb2 {[%emt 0:00:12]} ({Better is} 12. Nc4 $16) 12... Bxb2 {[%emt 0:08:43]} 13. Rxb2 {[%emt 0:00:57]} g5 {[%emt 0:00:06]} 14. Nxg5 {[%emt 0:00:48]} Qe5 {[%emt 0:00:35]} 15. Nxf7 {[%emt 0:00:52]} Nxf7 {[%emt 0:02:14]} 16. Nc4 {[%emt 0:00:09]} Qg7 {[%emt 0:00:30]} 17. e5 {[%emt 0:01:01]} Bxh3 {[%emt 0:03:19]} 18. Qf3 {[%emt 0:00:07]} Bg4 {[%emt 0:01:01]} 19. Qe3 {[%emt 0:00:01]} Rd5 {[%emt 0:13:23]} 20. f4 {[%emt 0:01:19]} Rg8 {[%emt 0:02:54]} 21. c3 {[%emt 0:00:15]} Bf5 {[%emt 0:02:40]} 22. Rd1 {[%emt 0:00:26]} Qg3 {[%emt 0:01:11]} 23. Rbd2 {[%emt 0:00:43]} b5 {[%emt 0:04:17]} 24. Qxg3 {[%emt 0:00:23]} Rxg3 {[%emt 0:00:02]} 25. Nb2 {[%emt 0:00:10]} h4 {[%emt 0:00:42]} 26. Kf2 {[%emt 0:00:30]} Nh6 {[%emt 0:00:18]} 27. Rh1 {[%emt 0:00:33]} Ng4+ {[%emt 0:01:30]} 28. Kg1 {[%emt 0:00:07]} Bxd3 {[%emt 0:06:10]} 29. Rxh4 {[%emt 0:00:31] [#]} Be4 $1 {[%emt 0:01:01]} 30. Re2 {[%emt 0:01:25]} Bf3 {[%emt 0:00:58]} 31. Rf2 {[%emt 0:00:01]} Nxf2 {[%emt 0:01:16]} 32. Kxf2 {[%emt 0:00:08]} Rxg2+ {[%emt 0:00:05]} 33. Kxf3 {[%emt 0:00:21]} Rxb2 {[%emt 0:00:03]} 34. Ke4 {[%emt 0:00:12]} Rxa2 {[%emt 0:02:13]} 35. Kf5 {[%emt 0:00:19]} Kd7 {[%emt 0:00:25]} 36. Rh8 {[%emt 0:00:26]} Ra3 {[%emt 0:02:30]} 37. Rb8 {[%emt 0:00:18]} Rxb3 {[%emt 0:03:07]} 38. Rb7+ {[%emt 0:01:58]} Kd8 {[%emt 0:02:34]} 39. Ke6 {[%emt 0:00:22]} Rxc3 {[%emt 0:00:40]} 40. Rxe7 {[%emt 0:00:36]} Rf3 {[%emt 0:00:42]} 41. Rf7 {[%emt 0:00:17]} c4 {[%emt 0:00:50]} 42. Kf5 {[%emt 0:00:12]} Rd4 {[%emt 0:01:04]} 43. Kg4 {[%emt 0:00:17]} Rdxf4+ {[%emt 0:00:13]} 44. Rxf4 {[%emt 0:00:15]} Rxf4+ {[%emt 0:00:06]} 45. Kxf4 {[%emt 0:00:05]} Ke7 {[%emt 0:00:07]} 46. Ke4 {[%emt 0:00:04]} c3 {[%emt 0:00:21]} 47. Kd3 {[%emt 0:00:16]} b4 {[%emt 0:00:12]} 48. Kc2 {[%emt 0:00:01]} Ke6 {[%emt 0:00:11]} 0-1

[Event "Gibraltar Challengers A 2020"]
[Site "Caleta"]
[Date "2020.01.24"]
[Round "5.20"]
[White "Manukonda Arun"]
[Black "Vinal Gutierrez, Pedro"]
[Result "1-0"]
[ECO "C66"]
[WhiteElo "1959"]
[BlackElo "2069"]
[Annotator "NA RC"]
[PlyCount "83"]
[EventDate "2020.01.20"]
[EventType "swiss"]
[EventCountry "GGB"]
[SourceTitle "playchess.com"]
[Source "ChessBase"]
[SourceQuality "1"]
[TimeControl "6600+10"]

1. e4 {[%emt 0:00:00]} e5 {[%emt 0:00:14]} 2. Nf3 {[%emt 0:01:26]} Nc6 {[%emt 0:00:10]} 3. Bb5 {[%emt 0:04:53]} Nf6 {[%emt 0:01:06]} 4. O-O {[%emt 0:01:36]} d6 {[%emt 0:00:11]} 5. Re1 {[%emt 0:02:50]} Be7 {[%emt 0:00:17]} 6. c3 {[%emt 0:00:33]} O-O {[%emt 0:00:12]} 7. d4 {[%emt 0:00:23]} exd4 {[%emt 0:00:53]} 8. cxd4 {[%emt 0:01:55]} Bg4 {[%emt 0:00:08]} 9. Bxc6 {[%emt 0:01:18] C66: Ruy Lopez: Steinitz Defence} bxc6 {[%emt 0:00:10]} 10. Nc3 {[%emt 0:00:09]} (10. h3 Bh5 11. Nbd2 h6 12. Nf1 Bg6 13. Ng3 Bh7 14. Qa4 Qe8 15. Nh4 d5 16. exd5 cxd5 {1-0 (60) Ribeiro,R (2200)-Roussel,S (2020) Avoine 2017}) 10... Rb8 {[%emt 0:00:24]} 11. h3 {[%emt 0:00:47]} Bh5 {[%emt 0:00:17]} 12. Qd3 {[%emt 0:03:17]} h6 {[%emt 0:02:22]} 13. Nh2 $146 {[%emt 0:01:49]} (13. Nd2 $14) ({Predecessor:} 13. e5 Nd5 14. Qc4 Nb4 15. Rd1 d5 16. Qe2 Qc8 {0-1 (16) Zabala,F (2040)-Gomez Barrero,S (2050) Medellin 2011}) 13... d5 {[%emt 0:02:18]} 14. e5 {[%emt 0:03:01]} Bg6 $2 {[%emt 0:00:16] [#]} (14... Nd7 $14) 15. exf6 $1 {[%emt 0:10:01]} Bxd3 {[%emt 0:00:12]} 16. fxe7 {[%emt 0:00:10]} Qd7 {[%emt 0:00:16]} 17. exf8=Q+ {[%emt 0:00:18]} Rxf8 {[%emt 0:00:44]} 18. Bd2 {[%emt 0:03:47]} Qd6 {[%emt 0:02:01]} 19. Na4 {[%emt 0:04:18]} Rb8 {[%emt 0:00:39]} 20. b3 {[%emt 0:01:42]} Qf6 {[%emt 0:00:22]} 21. Re5 {[%emt 0:02:45]} Be4 {[%emt 0:01:30]} 22. Nc5 {[%emt 0:02:36]} Qg6 {[%emt 0:00:41]} 23. Nxe4 {[%emt 0:01:06]} dxe4 {[%emt 0:00:08]} 24. Rc1 {[%emt 0:09:00]} Rd8 {[%emt 0:01:29]} 25. Be3 {[%emt 0:00:44]} f5 {[%emt 0:00:47]} 26. Rec5 {[%emt 0:02:55]} Rd6 {[%emt 0:01:45]} 27. Bf4 {[%emt 0:00:30]} Rxd4 {[%emt 0:02:22]} 28. Rxc6 {[%emt 0:01:04]} Qh5 {[%emt 0:00:11]} 29. Rxc7 {[%emt 0:03:11]} Qe2 {[%emt 0:00:34]} 30. Rxa7 {[%emt 0:09:01]} Rd1+ {[%emt 0:00:28]} 31. Rxd1 {[%emt 0:00:06]} Qxd1+ {[%emt 0:00:04]} 32. Nf1 {[%emt 0:00:07]} g5 {[%emt 0:00:14]} 33. Bd2 {[%emt 0:02:21]} f4 {[%emt 0:00:24]} 34. b4 {[%emt 0:00:14]} Qb1 $2 {[%emt 0:01:47]} (34... e3 35. fxe3 f3) 35. a4 {[%emt 0:00:11]} Qb2 {[%emt 0:00:10]} 36. b5 {[%emt 0:01:57]} Qd4 {[%emt 0:00:05]} 37. Ra6 {[%emt 0:02:15]} Kh7 {[%emt 0:00:28]} 38. b6 {[%emt 0:01:48]} Qe5 {[%emt 0:01:21]} 39. a5 {[%emt 0:01:49]} h5 {[%emt 0:00:12]} 40. b7 {[%emt 0:03:04]} g4 {[%emt 0:00:07]} 41. Rb6 {[%emt 0:01:09]} Qb8 {[%emt 0:00:17] [#]} 42. Bxf4 {[%emt 0:00:56]} 1-0

[Event "Gibraltar Challengers A 2020"]
[Site "Caleta"]
[Date "2020.01.24"]
[Round "5.21"]
[White "O`Neil, Jim"]
[Black "Kukic, Boris"]
[Result "1-0"]
[ECO "D31"]
[WhiteElo "1870"]
[BlackElo "2056"]
[Annotator "NA RC"]
[PlyCount "74"]
[EventDate "2020.01.20"]
[EventType "swiss"]
[EventCountry "GGB"]
[SourceTitle "playchess.com"]
[Source "ChessBase"]
[SourceQuality "1"]
[TimeControl "6600+10"]

1. d4 {[%emt 0:00:00]} d5 {[%emt 0:04:04]} 2. c4 {[%emt 0:00:00]} e6 {[%emt 0:00:02]} 3. Nc3 {[%emt 0:00:04]} c6 {[%emt 0:00:10]} 4. cxd5 {[%emt 0:00:01]} exd5 {[%emt 0:00:08]} 5. Bf4 {[%emt 0:00:01]} Bf5 {[%emt 0:00:54]} 6. e3 {[%emt 0:00:01]} Qb6 {[%emt 0:00:23] D31: Queen's Gambit Declined: Semi-Slav without ...Nf6 (+ Marshall Gambit and Noteboom) and Exchange Variation lines without ...Nf6} 7. Qb3 {[%emt 0:03:12]} Nf6 {[%emt 0:01:00]} 8. Nf3 {[%emt 0:02:03]} Nbd7 {[%emt 0:00:51]} 9. Be2 {[%emt 0:00:12]} Nh5 {[%emt 0:03:18]} 10. Be5 {[%emt 0:01:44]} Nhf6 $146 {[%emt 0:02:13]} ({Predecessor:} 10... Nxe5 11. dxe5 g6 12. Nd4 Ng7 13. O-O-O Be7 14. g4 Be6 15. f4 f6 {0-1 (58) Salimifard,B (2167)-Kotanjian,T (2510) Hamedan 2017}) 11. O-O {[%emt 0:02:56]} Qxb3 {[%emt 0:00:46]} 12. axb3 {[%emt 0:00:25]} a6 {[%emt 0:00:50]} 13. Rfc1 {[%emt 0:06:18]} Be7 {[%emt 0:01:29]} 14. Nh4 {[%emt 0:03:17]} Be6 {[%emt 0:02:12]} 15. Nf3 {[%emt 0:02:55]} O-O {[%emt 0:00:29]} 16. Bd3 {[%emt 0:01:29]} Ne8 {[%emt 0:01:20]} 17. Bg3 {[%emt 0:03:06]} f6 {[%emt 0:00:35]} 18. Nh4 {[%emt 0:02:02]} g6 {[%emt 0:00:41]} 19. f4 {[%emt 0:02:31]} f5 {[%emt 0:02:52]} 20. Nf3 {[%emt 0:00:17]} Nef6 {[%emt 0:00:21]} 21. Ng5 {[%emt 0:00:43]} Bf7 {[%emt 0:00:15]} 22. Be1 {[%emt 0:02:02]} h6 {[%emt 0:01:05]} 23. Nf3 {[%emt 0:01:44]} Ne4 {[%emt 0:00:32]} 24. Ne5 {[%emt 0:00:14]} Nxe5 {[%emt 0:00:48]} 25. fxe5 {[%emt 0:00:26]} Be6 {[%emt 0:00:51]} 26. Ne2 {[%emt 0:06:37]} g5 {[%emt 0:01:22]} 27. Nc3 {[%emt 0:02:30]} Rf7 {[%emt 0:01:07]} 28. Na4 {[%emt 0:03:30]} Raf8 {[%emt 0:01:09]} 29. b4 {[%emt 0:00:45]} f4 {[%emt 0:01:12]} 30. exf4 {[%emt 0:00:54]} Rxf4 {[%emt 0:00:54]} 31. Bc3 {[%emt 0:02:38]} Nf2 {[%emt 0:04:36]} 32. Bc2 {[%emt 0:02:30]} Ng4 {[%emt 0:06:33]} 33. Nc5 {[%emt 0:02:59]} Bxc5 {[%emt 0:04:39]} 34. bxc5 {[%emt 0:00:07]} Rf2 {[%emt 0:00:34]} 35. Bd3 {[%emt 0:01:45]} Ne3 {[%emt 0:02:11]} 36. Bf1 {[%emt 0:01:46]} Bg4 {[%emt 0:03:30]} 37. g3 {[%emt 0:02:03]} (37. e6 $17 Bxe6 38. Rab1) 37... Be2 $17 {[%emt 0:03:48]} 1-0

[Event "Gibraltar Challengers A 2020"]
[Site "Caleta"]
[Date "2020.01.24"]
[Round "5.22"]
[White "Niharika Ch"]
[Black "Karlsson, Jorgen"]
[Result "1-0"]
[ECO "B06"]
[WhiteElo "1865"]
[BlackElo "2054"]
[Annotator "NA RC"]
[PlyCount "79"]
[EventDate "2020.01.20"]
[EventType "swiss"]
[EventCountry "GGB"]
[SourceTitle "playchess.com"]
[Source "ChessBase"]
[SourceQuality "1"]
[TimeControl "6600+10"]

1. e4 {[%emt 0:00:00]} g6 {[%emt 0:00:00]} 2. d4 {[%emt 0:00:00]} Bg7 {[%emt 0:00:00]} 3. Nf3 {[%emt 0:00:11]} d6 {[%emt 0:00:04]} 4. h3 {[%emt 0:00:10]} Nd7 {[%emt 0:00:34]} 5. Nc3 {[%emt 0:00:11]} a6 {[%emt 0:00:05]} (5... e5 6. Be3 Ngf6 7. Qd2 O-O 8. O-O-O Qe7 9. g4 exd4 10. Nxd4 Nxe4 11. Nxe4 Qxe4 12. Rg1 Nb6 13. Bg2 Qe8 {0-1 (31) Vovk,A (2633)-Gareyev,T (2617) chess.com INT 2017}) 6. a4 {[%emt 0:00:05] B06: Modern Defence} e6 {[%emt 0:00:56]} 7. Be3 {[%emt 0:00:06]} Ne7 {[%emt 0:00:15]} 8. Qd2 {[%emt 0:00:12]} h6 {[%emt 0:00:13]} 9. Bd3 {[%emt 0:02:17]} b6 {[%emt 0:00:35]} 10. O-O {[%emt 0:01:07]} g5 $146 {[%emt 0:04:10]} ({Predecessor:} 10... Bb7 11. Rad1 Kf8 12. Nh2 Kg8 13. f4 f5 14. d5 fxe4 15. Bxe4 Bxc3 16. bxc3 Bxd5 {0-1 (40) Della Morte,G (2392)-Dolezal,C (2386) Buenos Aires 2014}) 11. Nh2 {[%emt 0:00:41]} e5 {[%emt 0:00:19]} 12. dxe5 {[%emt 0:01:07]} dxe5 {[%emt 0:00:24]} 13. Bc4 {[%emt 0:00:57]} O-O {[%emt 0:01:58]} 14. h4 {[%emt 0:04:08]} gxh4 {[%emt 0:01:35]} (14... Nc5 $16 {might work better.}) 15. Bxh6 {[%emt 0:00:49]} Ng6 {[%emt 0:00:32]} 16. Rad1 {[%emt 0:10:14]} (16. Bxg7 Kxg7 17. Rfd1 (17. Ng4 Nf4 $14) 17... Nf4 $16) 16... Qf6 {[%emt 0:18:29]} 17. Bg5 {[%emt 0:00:31]} Qd6 {[%emt 0:01:27]} 18. Qxd6 {[%emt 0:00:41]} cxd6 {[%emt 0:00:05]} 19. Rxd6 {[%emt 0:00:15]} Kh7 {[%emt 0:00:38]} 20. Nf3 {[%emt 0:04:30]} h3 {[%emt 0:01:18]} 21. g3 {[%emt 0:00:41]} Rb8 {[%emt 0:03:27]} 22. Be3 {[%emt 0:00:18]} Bh6 {[%emt 0:02:25]} 23. Bxh6 {[%emt 0:01:52]} Kxh6 {[%emt 0:01:01]} 24. Rfd1 {[%emt 0:00:08]} b5 {[%emt 0:01:12]} 25. axb5 {[%emt 0:00:28]} Nb6 {[%emt 0:00:32]} 26. Nxe5 {[%emt 0:13:59]} Nxc4 {[%emt 0:00:17]} 27. Nxc4 {[%emt 0:00:05]} axb5 {[%emt 0:00:25]} 28. Nb6 {[%emt 0:02:22]} f5 $2 {[%emt 0:05:51]} (28... Re8 {was called for.} 29. Nxc8 b4) 29. Ncd5 {[%emt 0:03:07]} Kg7 {[%emt 0:06:03]} 30. Nxc8 {[%emt 0:03:05]} Rbxc8 {[%emt 0:00:09]} 31. exf5 {[%emt 0:09:03]} Rxf5 {[%emt 0:01:02]} 32. Rxg6+ {[%emt 0:00:21]} Kxg6 {[%emt 0:00:14]} 33. Ne7+ {[%emt 0:00:06] Double Attack} Kg5 {[%emt 0:00:25]} 34. Nxc8 {[%emt 0:00:08]} Rc5 {[%emt 0:00:12]} 35. c3 {[%emt 0:03:43]} Rxc8 {[%emt 0:00:06]} 36. Rd5+ {[%emt 0:00:04]} Kg4 {[%emt 0:01:22]} 37. Rxb5 {[%emt 0:00:06]} Ra8 {[%emt 0:03:18]} 38. Kh2 {[%emt 0:00:33]} Ra2 {[%emt 0:00:54]} 39. Rb4+ $18 {[%emt 0:00:33]} Kf3 {[%emt 0:00:11]} 40. Rf4+ {[%emt 0:00:32]} 1-0

[Event "Gibraltar Challengers A 2020"]
[Site "Caleta"]
[Date "2020.01.24"]
[Round "5.23"]
[White "Erdogan, Hassan"]
[Black "Martinez Lopez, Jaume"]
[Result "0-1"]
[ECO "A41"]
[WhiteElo "1830"]
[BlackElo "2042"]
[Annotator "NA RC"]
[PlyCount "80"]
[EventDate "2020.01.20"]
[EventType "swiss"]
[EventCountry "GGB"]
[SourceTitle "playchess.com"]
[Source "ChessBase"]
[SourceQuality "1"]
[TimeControl "6600+10"]

{[%evp 19,79,0,32767,12,11,32767,32767,32767,32767,32767,32767,32767,32767,32767,32767,32767,-38,-48,-34,-47,-43,-84,-90,-166,-155,-155,32767,-290,-203,32767,-142,-229,-262,-302,-276,-283,32767,32767,-324,-331,-291,-330,32767,32767,-479,-494,-546,32767,32767,-501,32767,-511,-431,-686,-760,-703,-759,-923,-781,-847,-887,-29985]} 1. d4 {[%emt 0:00:00]} d6 {[%emt 0:00:00]} 2. Nf3 {[%emt 0:00:00]} Bg4 {[%emt 0:00:06]} 3. e3 {[%emt 0:00:04]} Nf6 {[%emt 0:00:08]} 4. Bd3 {[%emt 0:03:14]} (4. Be2 Nbd7 5. c4 e5 6. Nc3 c6 7. O-O Be7 8. h3 Bh5 9. b3 O-O 10. Bb2 e4 11. Nh2 Bxe2 12. Qxe2 d5 13. Rac1 a6 14. Ng4 Re8 15. Rc2 Bd6 16. Nxf6+ {½-½ (16) Mamedyarov,S (2817)-Petrosian,T (2598) St Petersburg 2018}) 4... e6 {[%emt 0:00:16]} 5. Nbd2 {[%emt 0:00:21]} Be7 {[%emt 0:00:14]} 6. O-O {[%emt 0:02:37] A41: 1 d4 d6: Tartakower System and Modern Defence} d5 {[%emt 0:07:33]} 7. c3 $146 {[%emt 0:01:41]} ({Predecessor:} 7. c4 c6 8. Qb3 Qc7 9. c5 Nbd7 10. Qc3 b6 11. b4 a5 12. a3 {0-1 (58) Dietzel,U (1739)-Krajewski,W (2131) Berlin 2009}) 7... c5 {[%emt 0:00:15]} 8. b3 {[%emt 0:00:13]} O-O {[%emt 0:00:16]} 9. Qc2 {[%emt 0:04:07]} Bh5 {[%emt 0:00:46]} 10. Ne5 {[%emt 0:01:10]} Nc6 {[%emt 0:00:22]} 11. Nxc6 {[%emt 0:17:58]} bxc6 {[%emt 0:00:25]} 12. Bb2 {[%emt 0:04:29]} a5 {[%emt 0:21:49]} 13. c4 {[%emt 0:00:48]} cxd4 {[%emt 0:00:25]} 14. Bxd4 {[%emt 0:09:37]} Bg6 {[%emt 0:00:54]} 15. Bxg6 {[%emt 0:03:09]} hxg6 {[%emt 0:00:04]} 16. c5 {[%emt 0:21:11]} Nd7 {[%emt 0:01:04]} 17. f4 {[%emt 0:00:44]} Bf6 {[%emt 0:20:00]} 18. a3 {[%emt 0:00:39]} Qc7 {[%emt 0:02:34]} 19. Bxf6 {[%emt 0:12:22]} gxf6 {[%emt 0:00:35]} 20. e4 {[%emt 0:01:36]} Rfb8 {[%emt 0:02:39]} 21. Rf3 {[%emt 0:08:24]} (21. a4 $17) 21... Rb5 {[%emt 0:04:10]} 22. Rc3 {[%emt 0:00:01]} Qxf4 {[%emt 0:00:27]} 23. exd5 {[%emt 0:00:50]} (23. Rf1 $142 Qh6 24. exd5 exd5 25. Re1) 23... exd5 {[%emt 0:00:18]} 24. Nf3 {[%emt 0:01:04]} Re8 {[%emt 0:15:00] Decoy} 25. g3 {[%emt 0:03:13]} (25. Qc1 $142 Qxc1+ 26. Raxc1) 25... Qg4 {[%emt 0:02:50]} 26. Qf2 {[%emt 0:00:16]} Re4 {[%emt 0:02:18]} 27. Rd1 {[%emt 0:01:11]} d4 {[%emt 0:01:34]} 28. Rcd3 {[%emt 0:00:19]} Nxc5 {[%emt 0:00:31]} 29. Rxd4 {[%emt 0:00:14]} Nxb3 {[%emt 0:02:29]} 30. Rd8+ {[%emt 0:02:19]} Kg7 {[%emt 0:00:10]} 31. Ra8 {[%emt 0:00:07]} Rd5 {[%emt 0:00:42]} (31... Rf5 $142 32. h3 Qxf3 33. Qxf3 Rxf3) 32. Rxd5 {[%emt 0:00:38]} (32. Rf1 {was the only defense.}) 32... cxd5 {[%emt 0:00:02]} 33. Ra6 {[%emt 0:01:10]} Re6 {[%emt 0:01:42]} 34. Rxe6 {[%emt 0:00:13]} Qxe6 {[%emt 0:00:10]} 35. Kg2 {[%emt 0:01:02]} Qe4 {[%emt 0:00:41]} 36. h3 {[%emt 0:01:20]} d4 {[%emt 0:00:39]} 37. Kh2 {[%emt 0:00:26]} d3 {[%emt 0:00:18]} 38. g4 {[%emt 0:00:01]} Qf4+ {[%emt 0:03:03]} 39. Kg1 $19 {[%emt 0:00:37]} d2 {[%emt 0:00:10]} 40. Qe2 {[%emt 0:00:13]} Qg3+ {[%emt 0:01:08]} 0-1

[Event "Gibraltar Challengers A 2020"]
[Site "Caleta"]
[Date "2020.01.24"]
[Round "5.24"]
[White "Lung, Liviu-Catalin"]
[Black "Hng, Mei-Xian Eunice"]
[Result "1-0"]
[ECO "B43"]
[WhiteElo "2041"]
[BlackElo "1661"]
[Annotator "NA RC"]
[PlyCount "36"]
[EventDate "2020.01.20"]
[EventType "swiss"]
[EventCountry "GGB"]
[SourceTitle "playchess.com"]
[Source "ChessBase"]
[SourceQuality "1"]
[TimeControl "6600+10"]

1. e4 {[%emt 0:00:00]} c5 {[%emt 0:00:00]} 2. Nf3 {[%emt 0:00:09]} e6 {[%emt 0:00:05]} 3. d4 {[%emt 0:00:26]} cxd4 {[%emt 0:00:10]} 4. Nxd4 {[%emt 0:00:06]} a6 {[%emt 0:00:11]} 5. Nc3 {[%emt 0:00:48]} Qc7 {[%emt 0:00:28]} 6. g3 {[%emt 0:00:21]} Nf6 {[%emt 0:02:19]} 7. Bg2 {[%emt 0:00:21]} Be7 {[%emt 0:02:01]} 8. O-O {[%emt 0:00:21]} O-O {[%emt 0:01:11]} 9. g4 {[%emt 0:03:07]} h6 {[%emt 0:04:14]} 10. h4 {[%emt 0:04:55]} d5 {[%emt 0:14:02]} 11. exd5 {[%emt 0:10:06]} exd5 {[%emt 0:06:46]} 12. g5 {[%emt 0:00:55]} Ng4 {[%emt 0:03:46]} 13. Nf3 {[%emt 0:00:36]} Be6 {[%emt 0:07:57]} 14. Nxd5 {[%emt 0:03:39]} Bxd5 {[%emt 0:02:16]} 15. Qxd5 {[%emt 0:00:11]} Qxc2 {[%emt 0:00:52]} 16. Ne5 {[%emt 0:06:20]} Nxf2 {[%emt 0:08:44]} 17. Be3 {[%emt 0:15:05]} Nd3 {[%emt 0:09:20]} 18. Nxd3 $18 {[%emt 0:04:14]} (18. Rxf7 $142 Nxe5 19. Rxf8+ Kxf8 20. Rf1+ Ke8 21. Qg8+ {[%mdl 64] Double Attack} Kd7 22. Bh3+ Kc6 23. Qc8+ Kb5 24. Qxb7+ Ka4 25. Qxe7) 18... Qc4 {[%emt 0:00:38]} 1-0